[Event "Titled Tuesday Blitz April 05 Late 2022"]
[White "Hnydiuk, Aleksander"]
[Black "Roman, Rodrigo"]
[WhiteFideId "1109057"]
[BlackFideId "3701220"]
[WhiteElo "2511"]
[BlackElo "2264"]
[Result "1-0"]
[Round "02"]
[TimeControl "180+1"]
[Date "2022.04.06"]
[WhiteClock "0:00:55"]
[BlackClock "0:00:41"]

1. Nf3 {[%clk 0:03:00]}  c5 {[%clk 0:03:00]} 2. c4 {[%clk 0:03:00]}  Nc6 {[%clk 0:03:00]} 3. d4 {[%clk 0:03:00]}  cxd4 {[%clk 0:03:01]} 4. Nxd4 {[%clk 0:03:01]}  Nf6 {[%clk 0:03:01]} 5. Nc3 {[%clk 0:02:59]}  d6 {[%clk 0:03:01]} 6. g3 {[%clk 0:02:59]}  Bd7 {[%clk 0:03:02]} 7. Bg2 {[%clk 0:02:59]}  a6 {[%clk 0:03:02]} 8. O-O {[%clk 0:02:59]}  Rc8 {[%clk 0:03:02]} 9. b3 {[%clk 0:02:56]}  Nxd4 {[%clk 0:03:00]} 10. Qxd4 {[%clk 0:02:55]}  Qc7 {[%clk 0:03:01]} 11. Bb2 {[%clk 0:02:31]}  e5 {[%clk 0:02:56]} 12. Qd3 {[%clk 0:02:30]}  Bc6 {[%clk 0:02:56]} 13. Rfd1 {[%clk 0:02:17]}  Be7 {[%clk 0:02:54]} 14. Rac1 {[%clk 0:02:15]}  O-O {[%clk 0:02:50]} 15. Nd5 {[%clk 0:02:02]}  Bxd5 {[%clk 0:02:50]} 16. Bxd5 {[%clk 0:01:58]}  Nxd5 {[%clk 0:02:49]} 17. Qxd5 {[%clk 0:01:59]}  Qc6 {[%clk 0:02:46]} 18. a4 {[%clk 0:01:57]}  Qb6 {[%clk 0:02:32]} 19. Rd3 {[%clk 0:01:52]}  Rc5 {[%clk 0:02:32]} 20. Qg2 {[%clk 0:01:47]}  f5 {[%clk 0:02:29]} 21. Ba3 {[%clk 0:01:44]}  Rc6 {[%clk 0:02:16]} 22. Qd5+ {[%clk 0:01:40]}  Kh8 {[%clk 0:02:16]} 23. a5 {[%clk 0:01:40]}  Qc7 {[%clk 0:02:10]} 24. Rcd1 {[%clk 0:01:37]}  Rf6 {[%clk 0:02:06]} 25. Bb4 {[%clk 0:01:17]}  h5 {[%clk 0:01:59]} 26. Qg2 {[%clk 0:01:17]}  f4 {[%clk 0:01:50]} 27. Qe4 {[%clk 0:01:13]}  g6 {[%clk 0:01:41]} 28. Rd5 {[%clk 0:01:12]}  Kg7 {[%clk 0:01:38]} 29. c5 {[%clk 0:01:08]}  dxc5 {[%clk 0:01:33]} 30. Rd7 {[%clk 0:01:08]}  fxg3 {[%clk 0:00:53]} 31. Rxc7 {[%clk 0:01:07]}  gxh2+ {[%clk 0:00:47]} 32. Kh1 {[%clk 0:01:05]}  Rxc7 {[%clk 0:00:47]} 33. Bc3 {[%clk 0:01:03]}  Kf7 {[%clk 0:00:42]} 34. Bxe5 {[%clk 0:01:00]}  Rfc6 {[%clk 0:00:43]} 35. Bxc7 {[%clk 0:00:57]}  Rxc7 {[%clk 0:00:44]} 36. Qd5+ {[%clk 0:00:56]}  Kf6 {[%clk 0:00:41]} 37. Rd3 {[%clk 0:00:55]} 1-0


[Site "https://www.chess.com"]

[Event "Titled Tuesday Blitz April 05 Late 2022"]
[White "Hoffmann, Asa"]
[Black "Adewumi, Tanitoluwa"]
[WhiteFideId "2001470"]
[BlackFideId "30966396"]
[WhiteElo "2369"]
[BlackElo "2559"]
[Result "1-0"]
[Round "02"]
[TimeControl "180+1"]
[Date "2022.04.06"]
[WhiteClock "0:00:55"]
[BlackClock "0:00:10"]

1. d4 {[%clk 0:02:57]}  Nf6 {[%clk 0:02:56]} 2. Bg5 {[%clk 0:02:53]}  Ne4 {[%clk 0:02:51]} 3. Bf4 {[%clk 0:02:53]}  d5 {[%clk 0:02:51]} 4. f3 {[%clk 0:02:45]}  Nd6 {[%clk 0:02:49]} 5. Nc3 {[%clk 0:02:45]}  c6 {[%clk 0:02:48]} 6. e4 {[%clk 0:02:44]}  dxe4 {[%clk 0:02:44]} 7. fxe4 {[%clk 0:02:44]}  g6 {[%clk 0:02:44]} 8. Nf3 {[%clk 0:02:42]}  Bg7 {[%clk 0:02:43]} 9. Qd2 {[%clk 0:02:42]}  O-O {[%clk 0:02:43]} 10. O-O-O {[%clk 0:02:42]}  Nd7 {[%clk 0:02:38]} 11. Bh6 {[%clk 0:02:41]}  Qa5 {[%clk 0:01:54]} 12. h4 {[%clk 0:02:34]}  f6 {[%clk 0:00:59]} 13. Bxg7 {[%clk 0:02:22]}  Kxg7 {[%clk 0:00:59]} 14. h5 {[%clk 0:02:22]}  g5 {[%clk 0:00:54]} 15. e5 {[%clk 0:02:21]}  Nf5 {[%clk 0:00:45]} 16. Bd3 {[%clk 0:02:20]}  Nb6 {[%clk 0:00:37]} 17. g4 {[%clk 0:02:06]}  Nh6 {[%clk 0:00:28]} 18. Nxg5 {[%clk 0:02:06]}  fxe5 {[%clk 0:00:23]} 19. Nxh7 {[%clk 0:02:01]}  exd4 {[%clk 0:00:23]} 20. Nb1 {[%clk 0:01:22]}  Qxd2+ {[%clk 0:00:22]} 21. Nxd2 {[%clk 0:01:21]}  Bxg4 {[%clk 0:00:22]} 22. Nxf8 {[%clk 0:01:17]}  Rxf8 {[%clk 0:00:19]} 23. Rdg1 {[%clk 0:01:16]}  Nd5 {[%clk 0:00:17]} 24. Ne4 {[%clk 0:01:12]}  Kh8 {[%clk 0:00:15]} 25. Rh4 {[%clk 0:01:08]}  Ne3 {[%clk 0:00:15]} 26. Kd2 {[%clk 0:01:01]}  e5 {[%clk 0:00:15]} 27. c3 {[%clk 0:01:01]}  c5 {[%clk 0:00:14]} 28. Nxc5 {[%clk 0:00:57]}  Rf2+ {[%clk 0:00:14]} 29. Kc1 {[%clk 0:00:57]}  b6 {[%clk 0:00:11]} 30. Ne4 {[%clk 0:00:56]}  Bf5 {[%clk 0:00:10]} 31. Nxf2 {[%clk 0:00:55]} 1-0


[Site "https://www.chess.com"]

[Event "Titled Tuesday Blitz April 05 Late 2022"]
[White "Holt, Conrad"]
[Black "Yurtseven, Melih"]
[WhiteFideId "2034387"]
[BlackFideId "6312160"]
[WhiteElo "2854"]
[BlackElo "2533"]
[Result "1-0"]
[Round "02"]
[TimeControl "180+1"]
[Date "2022.04.06"]
[WhiteClock "0:00:18"]
[BlackClock "0:00:07"]

1. d4 {[%clk 0:03:00]}  Nf6 {[%clk 0:02:55]} 2. c4 {[%clk 0:03:00]}  g6 {[%clk 0:02:55]} 3. Nc3 {[%clk 0:03:01]}  d5 {[%clk 0:02:55]} 4. e3 {[%clk 0:03:01]}  Bg7 {[%clk 0:02:55]} 5. Qb3 {[%clk 0:03:00]}  dxc4 {[%clk 0:02:53]} 6. Bxc4 {[%clk 0:03:00]}  O-O {[%clk 0:02:53]} 7. Nf3 {[%clk 0:03:01]}  Nc6 {[%clk 0:02:52]} 8. Ne5 {[%clk 0:02:57]}  Nxe5 {[%clk 0:02:28]} 9. dxe5 {[%clk 0:02:57]}  Nd7 {[%clk 0:02:28]} 10. e6 {[%clk 0:02:44]}  fxe6 {[%clk 0:02:29]} 11. O-O {[%clk 0:02:44]}  Nc5 {[%clk 0:02:27]} 12. Qc2 {[%clk 0:02:33]}  c6 {[%clk 0:01:56]} 13. Rd1 {[%clk 0:01:51]}  Qc7 {[%clk 0:01:56]} 14. b4 {[%clk 0:01:38]}  Na4 {[%clk 0:01:46]} 15. Qxa4 {[%clk 0:01:35]}  Bxc3 {[%clk 0:01:45]} 16. Rb1 {[%clk 0:01:35]}  Be5 {[%clk 0:01:26]} 17. f4 {[%clk 0:01:18]}  b5 {[%clk 0:01:17]} 18. Qc2 {[%clk 0:01:12]}  bxc4 {[%clk 0:01:17]} 19. fxe5 {[%clk 0:01:12]}  Ba6 {[%clk 0:01:17]} 20. e4 {[%clk 0:00:59]}  Rad8 {[%clk 0:01:12]} 21. Bh6 {[%clk 0:00:57]}  Rxd1+ {[%clk 0:00:53]} 22. Rxd1 {[%clk 0:00:52]}  Rd8 {[%clk 0:00:53]} 23. Rf1 {[%clk 0:00:46]}  Qxe5 {[%clk 0:00:51]} 24. Qf2 {[%clk 0:00:46]}  Qf6 {[%clk 0:00:09]} 25. Qxa7 {[%clk 0:00:41]}  Qh4 {[%clk 0:00:09]} 26. Qc7 {[%clk 0:00:20]}  Ra8 {[%clk 0:00:09]} 27. Qxc6 {[%clk 0:00:19]}  Rd8 {[%clk 0:00:08]} 28. Qxe6+ {[%clk 0:00:19]}  Kh8 {[%clk 0:00:07]} 29. Qe5+ {[%clk 0:00:18]} 1-0


[Site "https://www.chess.com"]

[Event "Titled Tuesday Blitz April 05 Late 2022"]
[White "Ibarra Jerez, Jose Carlos"]
[Black "Petrovic, Aleksa"]
[WhiteFideId "2226332"]
[BlackFideId "967629"]
[WhiteElo "2799"]
[BlackElo "2510"]
[Result "1-0"]
[Round "02"]
[TimeControl "180+1"]
[Date "2022.04.06"]
[WhiteClock "0:00:16"]
[BlackClock "0:00:03"]

1. e4 {[%clk 0:03:00]}  d6 {[%clk 0:02:56]} 2. d4 {[%clk 0:03:00]}  Nf6 {[%clk 0:02:55]} 3. Nc3 {[%clk 0:03:00]}  c6 {[%clk 0:02:56]} 4. f4 {[%clk 0:03:00]}  Qa5 {[%clk 0:02:54]} 5. Bd3 {[%clk 0:03:00]}  e5 {[%clk 0:02:54]} 6. Nf3 {[%clk 0:02:59]}  Bg4 {[%clk 0:02:54]} 7. Be3 {[%clk 0:02:58]}  Nbd7 {[%clk 0:02:53]} 8. O-O {[%clk 0:02:58]}  g6 {[%clk 0:02:49]} 9. h3 {[%clk 0:02:41]}  Bxf3 {[%clk 0:02:48]} 10. Qxf3 {[%clk 0:02:41]}  Bg7 {[%clk 0:02:45]} 11. dxe5 {[%clk 0:02:22]}  dxe5 {[%clk 0:02:45]} 12. f5 {[%clk 0:02:22]}  O-O {[%clk 0:02:23]} 13. a3 {[%clk 0:02:18]}  b5 {[%clk 0:02:14]} 14. b4 {[%clk 0:02:03]}  Qc7 {[%clk 0:02:13]} 15. g4 {[%clk 0:02:04]}  Rfd8 {[%clk 0:01:58]} 16. Bf2 {[%clk 0:01:43]}  a6 {[%clk 0:01:51]} 17. Bh4 {[%clk 0:01:41]}  Rf8 {[%clk 0:01:39]} 18. g5 {[%clk 0:01:30]}  Nh5 {[%clk 0:01:38]} 19. f6 {[%clk 0:01:31]}  Bh8 {[%clk 0:01:38]} 20. Bf2 {[%clk 0:01:28]}  Nf4 {[%clk 0:01:36]} 21. Ne2 {[%clk 0:01:24]}  Ne6 {[%clk 0:01:31]} 22. h4 {[%clk 0:01:24]}  c5 {[%clk 0:01:30]} 23. Nc3 {[%clk 0:01:22]}  Nf4 {[%clk 0:01:24]} 24. Bg3 {[%clk 0:01:12]}  cxb4 {[%clk 0:01:22]} 25. Nd1 {[%clk 0:01:01]}  Nxd3 {[%clk 0:01:13]} 26. cxd3 {[%clk 0:01:00]}  h5 {[%clk 0:01:00]} 27. Ne3 {[%clk 0:00:57]}  bxa3 {[%clk 0:00:56]} 28. Nd5 {[%clk 0:00:57]}  Qc5+ {[%clk 0:00:54]} 29. Bf2 {[%clk 0:00:58]}  Qd6 {[%clk 0:00:52]} 30. Rfc1 {[%clk 0:00:53]}  b4 {[%clk 0:00:43]} 31. Rc6 {[%clk 0:00:52]}  Qb8 {[%clk 0:00:40]} 32. Qd1 {[%clk 0:00:36]}  a5 {[%clk 0:00:28]} 33. Qa4 {[%clk 0:00:34]}  Kh7 {[%clk 0:00:21]} 34. Rc7 {[%clk 0:00:26]}  b3 {[%clk 0:00:14]} 35. Qxa3 {[%clk 0:00:25]}  Rd8 {[%clk 0:00:12]} 36. Qe7 {[%clk 0:00:20]}  Rf8 {[%clk 0:00:07]} 37. Qxd7 {[%clk 0:00:18]}  b2 {[%clk 0:00:07]} 38. Rb1 {[%clk 0:00:17]}  a4 {[%clk 0:00:07]} 39. Rb7 {[%clk 0:00:18]}  a3 {[%clk 0:00:07]} 40. Nc3 {[%clk 0:00:18]}  a2 {[%clk 0:00:05]} 41. Nxa2 {[%clk 0:00:16]}  Rxa2 {[%clk 0:00:03]} 42. Rxb8 {[%clk 0:00:17]}  Ra1 {[%clk 0:00:03]} 43. Rxb2 {[%clk 0:00:16]} 1-0


[Site "https://www.chess.com"]

[Event "Titled Tuesday Blitz April 05 Late 2022"]
[White "Johnson, Ben"]
[Black "Baches Garcia, Guillermo"]
[WhiteFideId "2010917"]
[BlackFideId "2209764"]
[WhiteElo "2153"]
[BlackElo "2492"]
[Result "0-1"]
[Round "02"]
[TimeControl "180+1"]
[Date "2022.04.06"]
[WhiteClock "0:00:05"]
[BlackClock "0:00:40"]

1. Nf3 {[%clk 0:03:00]}  d5 {[%clk 0:02:59]} 2. e3 {[%clk 0:03:00]}  Nf6 {[%clk 0:02:56]} 3. c4 {[%clk 0:03:00]}  e6 {[%clk 0:02:56]} 4. b3 {[%clk 0:03:00]}  Be7 {[%clk 0:02:56]} 5. Bb2 {[%clk 0:03:00]}  O-O {[%clk 0:02:56]} 6. Nc3 {[%clk 0:03:00]}  b6 {[%clk 0:02:57]} 7. cxd5 {[%clk 0:03:00]}  exd5 {[%clk 0:02:56]} 8. Qc2 {[%clk 0:02:53]}  c5 {[%clk 0:02:53]} 9. d4 {[%clk 0:02:51]}  Nc6 {[%clk 0:02:53]} 10. Rd1 {[%clk 0:02:20]}  Nb4 {[%clk 0:02:48]} 11. Qb1 {[%clk 0:02:06]}  g6 {[%clk 0:02:41]} 12. Rd2 {[%clk 0:01:51]}  Bf5 {[%clk 0:02:37]} 13. Qc1 {[%clk 0:01:51]}  c4 {[%clk 0:02:22]} 14. Ne5 {[%clk 0:01:39]}  cxb3 {[%clk 0:02:12]} 15. axb3 {[%clk 0:01:35]}  Rc8 {[%clk 0:02:10]} 16. f3 {[%clk 0:01:07]}  Na2 {[%clk 0:01:39]} 17. Qa1 {[%clk 0:00:55]}  Nxc3 {[%clk 0:01:39]} 18. Bxc3 {[%clk 0:00:55]}  Qc7 {[%clk 0:01:38]} 19. Bb2 {[%clk 0:00:48]}  Bb4 {[%clk 0:01:36]} 20. Qd1 {[%clk 0:00:28]}  Qc2 {[%clk 0:01:29]} 21. g4 {[%clk 0:00:16]}  Bxd2+ {[%clk 0:01:13]} 22. Qxd2 {[%clk 0:00:17]}  Qxd2+ {[%clk 0:01:13]} 23. Kxd2 {[%clk 0:00:17]}  Rc2+ {[%clk 0:01:12]} 24. Kd1 {[%clk 0:00:16]}  Rxb2 {[%clk 0:01:10]} 25. gxf5 {[%clk 0:00:15]}  Rc8 {[%clk 0:01:08]} 26. Bd3 {[%clk 0:00:15]}  Rc3 {[%clk 0:00:58]} 27. fxg6 {[%clk 0:00:14]}  hxg6 {[%clk 0:00:58]} 28. h4 {[%clk 0:00:13]}  Rcxb3 {[%clk 0:00:54]} 29. f4 {[%clk 0:00:09]}  Rb1+ {[%clk 0:00:52]} 30. Kc2 {[%clk 0:00:08]}  R1b2+ {[%clk 0:00:41]} 31. Kc1 {[%clk 0:00:05]}  Ne4 {[%clk 0:00:40]} 0-1


[Site "https://www.chess.com"]

[Event "Titled Tuesday Blitz April 05 Late 2022"]
[White "Khanin, Semen"]
[Black "Golubev, Mikhail"]
[WhiteFideId "4111990"]
[BlackFideId "14100983"]
[WhiteElo "2765"]
[BlackElo "2426"]
[Result "1-0"]
[Round "02"]
[TimeControl "180+1"]
[Date "2022.04.06"]
[WhiteClock "0:00:55"]
[BlackClock "0:00:04"]

1. e4 {[%clk 0:03:00]}  c5 {[%clk 0:02:59]} 2. Nf3 {[%clk 0:03:00]}  d6 {[%clk 0:03:00]} 3. d4 {[%clk 0:03:01]}  Nf6 {[%clk 0:02:57]} 4. Nc3 {[%clk 0:02:59]}  cxd4 {[%clk 0:02:57]} 5. Nxd4 {[%clk 0:03:00]}  g6 {[%clk 0:02:58]} 6. Be3 {[%clk 0:02:56]}  Bg7 {[%clk 0:02:58]} 7. f3 {[%clk 0:02:50]}  Nc6 {[%clk 0:02:58]} 8. Qd2 {[%clk 0:02:51]}  O-O {[%clk 0:02:58]} 9. Bc4 {[%clk 0:02:51]}  Bd7 {[%clk 0:02:54]} 10. O-O-O {[%clk 0:02:49]}  Rb8 {[%clk 0:02:53]} 11. Bb3 {[%clk 0:02:47]}  Na5 {[%clk 0:02:52]} 12. Kb1 {[%clk 0:02:44]}  b5 {[%clk 0:02:49]} 13. h4 {[%clk 0:02:42]}  Nc4 {[%clk 0:02:49]} 14. Bxc4 {[%clk 0:02:42]}  bxc4 {[%clk 0:02:49]} 15. Ka1 {[%clk 0:02:43]}  h5 {[%clk 0:02:45]} 16. Bh6 {[%clk 0:02:42]}  Qa5 {[%clk 0:02:27]} 17. Bxg7 {[%clk 0:02:42]}  Kxg7 {[%clk 0:02:27]} 18. Rhe1 {[%clk 0:02:38]}  Rb6 {[%clk 0:02:18]} 19. Nd5 {[%clk 0:02:24]}  Qxd2 {[%clk 0:02:14]} 20. Rxd2 {[%clk 0:02:25]}  Nxd5 {[%clk 0:02:13]} 21. exd5 {[%clk 0:02:25]}  Kf6 {[%clk 0:01:42]} 22. Re4 {[%clk 0:02:25]}  c3 {[%clk 0:01:33]} 23. bxc3 {[%clk 0:02:23]}  Rc8 {[%clk 0:01:33]} 24. Rd3 {[%clk 0:02:20]}  e5 {[%clk 0:01:25]} 25. dxe6 {[%clk 0:02:19]}  fxe6 {[%clk 0:01:26]} 26. Nb3 {[%clk 0:02:17]}  e5 {[%clk 0:01:15]} 27. Ree3 {[%clk 0:02:11]}  Bf5 {[%clk 0:01:07]} 28. Rd2 {[%clk 0:02:11]}  Rc4 {[%clk 0:01:04]} 29. g3 {[%clk 0:01:59]}  Ra6 {[%clk 0:01:00]} 30. Kb2 {[%clk 0:01:57]}  Rca4 {[%clk 0:01:00]} 31. a3 {[%clk 0:01:48]}  Rxa3 {[%clk 0:00:57]} 32. Rxd6+ {[%clk 0:01:48]}  Rxd6 {[%clk 0:00:58]} 33. Kxa3 {[%clk 0:01:49]}  Bxc2 {[%clk 0:00:57]} 34. Nc5 {[%clk 0:01:49]}  Rd5 {[%clk 0:00:49]} 35. Kb4 {[%clk 0:01:48]}  a5+ {[%clk 0:00:41]} 36. Kb5 {[%clk 0:01:45]}  a4 {[%clk 0:00:39]} 37. c4 {[%clk 0:01:45]}  Rd1 {[%clk 0:00:34]} 38. Kc6 {[%clk 0:01:32]}  Rd4 {[%clk 0:00:27]} 39. Nd7+ {[%clk 0:01:31]}  Kg7 {[%clk 0:00:22]} 40. Nxe5 {[%clk 0:01:32]}  Bb3 {[%clk 0:00:19]} 41. c5 {[%clk 0:01:29]}  Rd1 {[%clk 0:00:16]} 42. Kb5 {[%clk 0:01:21]}  Rb1 {[%clk 0:00:15]} 43. Kb4 {[%clk 0:01:22]}  Bd1+ {[%clk 0:00:14]} 44. Ka3 {[%clk 0:01:16]}  Rc1 {[%clk 0:00:13]} 45. c6 {[%clk 0:01:16]}  Rc5 {[%clk 0:00:11]} 46. f4 {[%clk 0:01:16]}  Bb3 {[%clk 0:00:11]} 47. Kb4 {[%clk 0:01:16]}  Rc2 {[%clk 0:00:12]} 48. Rxb3 {[%clk 0:01:03]}  axb3 {[%clk 0:00:10]} 49. Kxb3 {[%clk 0:01:04]}  Rc1 {[%clk 0:00:10]} 50. Nc4 {[%clk 0:01:02]}  Rb1+ {[%clk 0:00:07]} 51. Ka4 {[%clk 0:00:59]}  Rb8 {[%clk 0:00:06]} 52. Nd6 {[%clk 0:00:59]}  Ra8+ {[%clk 0:00:05]} 53. Kb5 {[%clk 0:00:59]}  Ra3 {[%clk 0:00:05]} 54. c7 {[%clk 0:00:59]}  Rb3+ {[%clk 0:00:05]} 55. Kc4 {[%clk 0:00:56]}  Rb1 {[%clk 0:00:04]} 56. c8=Q {[%clk 0:00:55]} 1-0


[Site "https://www.chess.com"]

[Event "Titled Tuesday Blitz April 05 Late 2022"]
[White "Kostiukov, Alexandr"]
[Black "Kosakowski, Jakub"]
[WhiteFideId "14108100"]
[BlackFideId "1185080"]
[WhiteElo "2342"]
[BlackElo "2738"]
[Result "0-1"]
[Round "02"]
[TimeControl "180+1"]
[Date "2022.04.06"]
[WhiteClock "0:00:06"]
[BlackClock "0:00:28"]

1. g3 {[%clk 0:03:00]}  f5 {[%clk 0:02:48]} 2. c4 {[%clk 0:03:00]}  Nf6 {[%clk 0:02:49]} 3. Bg2 {[%clk 0:03:00]}  g6 {[%clk 0:02:49]} 4. d4 {[%clk 0:03:01]}  Bg7 {[%clk 0:02:50]} 5. Nc3 {[%clk 0:03:01]}  O-O {[%clk 0:02:50]} 6. Nf3 {[%clk 0:03:02]}  d6 {[%clk 0:02:51]} 7. O-O {[%clk 0:03:01]}  Nc6 {[%clk 0:02:50]} 8. d5 {[%clk 0:03:02]}  Na5 {[%clk 0:02:50]} 9. Nd2 {[%clk 0:02:52]}  c5 {[%clk 0:02:49]} 10. dxc6 {[%clk 0:02:46]}  Nxc6 {[%clk 0:02:48]} 11. e4 {[%clk 0:02:29]}  e5 {[%clk 0:02:43]} 12. Nd5 {[%clk 0:02:22]}  Be6 {[%clk 0:02:41]} 13. b3 {[%clk 0:02:17]}  b5 {[%clk 0:02:25]} 14. Nxf6+ {[%clk 0:02:07]}  Qxf6 {[%clk 0:02:08]} 15. exf5 {[%clk 0:02:01]}  Bd7 {[%clk 0:02:06]} 16. cxb5 {[%clk 0:01:55]}  Nd4 {[%clk 0:02:05]} 17. fxg6 {[%clk 0:01:43]}  Rac8 {[%clk 0:02:02]} 18. gxh7+ {[%clk 0:01:41]}  Kh8 {[%clk 0:02:02]} 19. Ne4 {[%clk 0:01:16]}  Qg6 {[%clk 0:02:01]} 20. Ba3 {[%clk 0:01:07]}  Bg4 {[%clk 0:01:21]} 21. f3 {[%clk 0:00:48]}  Bxf3 {[%clk 0:00:41]} 22. Bxf3 {[%clk 0:00:48]}  Rxf3 {[%clk 0:00:40]} 23. Rxf3 {[%clk 0:00:19]}  Qxe4 {[%clk 0:00:40]} 24. Rf2 {[%clk 0:00:12]}  Bh6 {[%clk 0:00:27]} 25. Bc1 {[%clk 0:00:10]}  Be3 {[%clk 0:00:28]} 26. Bxe3 {[%clk 0:00:10]}  Qxe3 {[%clk 0:00:29]} 27. Qe1 {[%clk 0:00:06]}  Nf3+ {[%clk 0:00:29]} 28. Kf1 {[%clk 0:00:04]}  Nxe1 {[%clk 0:00:29]} 29. Rxe1 {[%clk 0:00:05]}  Rc1 {[%clk 0:00:29]} 30. Rxc1 {[%clk 0:00:04]}  Qxc1+ {[%clk 0:00:30]} 31. Kg2 {[%clk 0:00:05]}  Kxh7 {[%clk 0:00:30]} 32. a4 {[%clk 0:00:04]}  Qc3 {[%clk 0:00:29]} 33. Rf3 {[%clk 0:00:04]}  Qc2+ {[%clk 0:00:29]} 34. Kh3 {[%clk 0:00:05]}  e4 {[%clk 0:00:30]} 35. Rf7+ {[%clk 0:00:05]}  Kg6 {[%clk 0:00:30]} 36. Rxa7 {[%clk 0:00:06]}  e3 {[%clk 0:00:30]} 37. b6 {[%clk 0:00:06]}  e2 {[%clk 0:00:28]} 38. b7 {[%clk 0:00:06]}  Qf5+ {[%clk 0:00:28]} 39. Kg2 {[%clk 0:00:06]}  Qf1# {[%clk 0:00:28]} 0-1


[Site "https://www.chess.com"]

[Event "Titled Tuesday Blitz April 05 Late 2022"]
[White "Kozin, Yuri"]
[Black "Petrova, Irina"]
[WhiteFideId "4129920"]
[BlackFideId "14124122"]
[WhiteElo "2521"]
[BlackElo "2283"]
[Result "1-0"]
[Round "02"]
[TimeControl "180+1"]
[Date "2022.04.06"]
[WhiteClock "0:00:42"]
[BlackClock "0:00:13"]

1. e4 {[%clk 0:03:00]}  d6 {[%clk 0:03:00]} 2. d4 {[%clk 0:03:00]}  Nf6 {[%clk 0:03:01]} 3. Nc3 {[%clk 0:03:01]}  e5 {[%clk 0:03:01]} 4. Nf3 {[%clk 0:03:00]}  Nbd7 {[%clk 0:03:00]} 5. Bc4 {[%clk 0:03:00]}  Be7 {[%clk 0:03:00]} 6. O-O {[%clk 0:03:00]}  O-O {[%clk 0:03:00]} 7. Re1 {[%clk 0:03:00]}  c6 {[%clk 0:03:00]} 8. a4 {[%clk 0:03:00]}  h6 {[%clk 0:03:00]} 9. a5 {[%clk 0:03:00]}  Re8 {[%clk 0:03:00]} 10. d5 {[%clk 0:02:58]}  b5 {[%clk 0:02:49]} 11. Ba2 {[%clk 0:02:29]}  Bb7 {[%clk 0:02:37]} 12. a6 {[%clk 0:02:26]}  Bxa6 {[%clk 0:02:18]} 13. dxc6 {[%clk 0:02:26]}  Nc5 {[%clk 0:02:18]} 14. Nd5 {[%clk 0:02:12]}  Nxd5 {[%clk 0:02:09]} 15. Bxd5 {[%clk 0:02:09]}  Qc8 {[%clk 0:01:33]} 16. Be3 {[%clk 0:02:04]}  b4 {[%clk 0:01:19]} 17. Bxc5 {[%clk 0:01:56]}  dxc5 {[%clk 0:01:20]} 18. Nxe5 {[%clk 0:01:55]}  Bf6 {[%clk 0:01:14]} 19. Bxf7+ {[%clk 0:01:44]}  Kh8 {[%clk 0:01:04]} 20. Bxe8 {[%clk 0:01:36]}  Bxe5 {[%clk 0:01:04]} 21. Bd7 {[%clk 0:01:32]}  Qc7 {[%clk 0:00:52]} 22. Rxa6 {[%clk 0:01:30]}  Bxh2+ {[%clk 0:00:52]} 23. Kh1 {[%clk 0:01:30]}  Rf8 {[%clk 0:00:50]} 24. Qh5 {[%clk 0:01:18]}  Be5 {[%clk 0:00:33]} 25. Bf5 {[%clk 0:00:50]}  Qd6 {[%clk 0:00:17]} 26. Qg6 {[%clk 0:00:43]}  Qxg6 {[%clk 0:00:17]} 27. Bxg6 {[%clk 0:00:44]}  Rxf2 {[%clk 0:00:17]} 28. Rxa7 {[%clk 0:00:43]}  Rf8 {[%clk 0:00:14]} 29. Re7 {[%clk 0:00:41]}  Bd6 {[%clk 0:00:12]} 30. Re8 {[%clk 0:00:39]}  Rxe8 {[%clk 0:00:12]} 31. Bxe8 {[%clk 0:00:40]}  Kg8 {[%clk 0:00:12]} 32. e5 {[%clk 0:00:40]}  Bc7 {[%clk 0:00:12]} 33. e6 {[%clk 0:00:40]}  Kf8 {[%clk 0:00:13]} 34. Bf7 {[%clk 0:00:41]}  Ke7 {[%clk 0:00:13]} 35. Rd1 {[%clk 0:00:41]}  Bd6 {[%clk 0:00:13]} 36. c7 {[%clk 0:00:40]}  Bxc7 {[%clk 0:00:13]} 37. Rd7+ {[%clk 0:00:41]}  Kf6 {[%clk 0:00:13]} 38. Rxc7 {[%clk 0:00:42]} 1-0


[Site "https://www.chess.com"]